bitfinex-derivatives/quotes_BTCF0:USTF0_20250704
["timestamp","ask_amount","ask_price","bid_price","bid_amount"]
[1751612728563,1.7401482,109180.0,109170.0,0.21240237]
[1751612729161,1.7401482,109180.0,109170.0,0.1851314]
[1751612729558,1.3793482,109180.0,109170.0,0.1851314]
[1751612729764,2.1009482,109180.0,109170.0,0.1851314]
[1751612731566,0.1831407,109170.0,109160.0,0.52402366]
[1751612731763,0.1831407,109170.0,109160.0,0.2289308]
[1751612731764,2.08448486,109170.0,109160.0,0.2289308]
[1751612732267,2.08448486,109170.0,109160.0,0.1831428]
[1751612734268,2.15669836,109170.0,109160.0,0.1831428]
[1751612734671,2.15669836,109170.0,109160.0,0.49910205]
[1751612735270,2.15669836,109170.0,109160.0,0.24979789]
[1751612735669,2.15669836,109170.0,109160.0,0.49910205]
[1751612736764,2.15669836,109170.0,109160.0,0.24979789]
[1751612738062,0.1831575,109160.0,109150.0,0.37510021]
[1751612738268,1.46374985,109160.0,109150.0,0.36571555]
[1751612738468,0.99834153,109160.0,109150.0,0.03640804]
[1751612738668,1.49694985,109160.0,109150.0,0.21958244]
[1751612739164,0.1831744,109150.0,109140.0,0.37513071]
[1751612739365,2.00067856,109150.0,109140.0,0.05456151]
[1751612739672,0.1831911,109140.0,109130.0,0.20086591]
[1751612739865,1.46774059,109140.0,109130.0,0.1832079]
[1751612741466,1.46474059,109140.0,109130.0,0.1832079]
[1751612741874,1.21559647,109140.0,109130.0,0.1832079]
[1751612742474,1.21559647,109140.0,109130.0,0.1842079]
[1751612743576,1.1963553,109140.0,109130.0,0.1842079]
[1751612743874,1.21558004,109140.0,109130.0,0.1842079]
[1751612746776,1.80211584,109140.0,109130.0,0.4336721]
[1751612747175,1.80189613,109140.0,109130.0,0.4336721]
[1751612747575,1.80189613,109140.0,109130.0,0.1842079]
[1751612749976,1.80189613,109140.0,109130.0,0.1872079]
[1751612755174,2.05136033,109140.0,109130.0,0.1872079]
[1751612756674,1.21536033,109140.0,109130.0,0.1872079]
[1751612756874,2.05064033,109140.0,109130.0,0.1872079]
[1751612758774,1.21536033,109140.0,109130.0,0.1872079]
[1751612758975,2.05088033,109140.0,109130.0,0.1872079]
[1751612761377,2.05088033,109140.0,109130.0,0.24176941]
[1751612761779,2.30032329,109140.0,109130.0,0.49122299]
[1751612762788,2.30032329,109140.0,109130.0,0.24176941]
[1751612762989,2.05086971,109140.0,109130.0,0.49122299]
[1751612764190,1.80141613,109140.0,109130.0,0.24176941]
[1751612764391,2.05086971,109140.0,109130.0,0.49122299]
[1751612766092,2.03186468,109140.0,109130.0,0.49122299]
[1751612768688,2.03186468,109140.0,109130.0,0.24176941]
[1751612768890,2.03186468,109140.0,109130.0,0.49122299]
[1751612769195,2.03186468,109140.0,109130.0,0.43666148]
[1751612769796,2.05080351,109140.0,109130.0,0.43666148]
[1751612772096,2.05080351,109140.0,109130.0,0.1872079]
[1751612772299,2.05080351,109140.0,109130.0,0.43666148]
[1751612772599,2.05080351,109140.0,109130.0,0.1872079]
[1751612772895,2.05080351,109140.0,109130.0,0.43666148]
[1751612775202,2.05080351,109140.0,109130.0,0.1872079]
[1751612775498,2.05080351,109140.0,109130.0,0.43666148]
[1751612776198,2.05080351,109140.0,109130.0,0.1872079]
[1751612776499,2.05080351,109140.0,109130.0,0.43666148]
[1751612785302,1.69000351,109140.0,109130.0,0.43666148]
[1751612785499,2.05080351,109140.0,109130.0,0.43666148]
[1751612787302,1.69000351,109140.0,109130.0,0.43666148]
[1751612787602,2.05080351,109140.0,109130.0,0.43666148]
[1751612789298,0.3206412,109130.0,109110.0,0.01102824]
[1751612789504,0.79347978,109120.0,109110.0,0.34768824]
[1751612789698,1.20437978,109120.0,109110.0,0.59714182]
[1751612790804,1.20437978,109120.0,109110.0,0.60014182]
[1751612791302,1.20437978,109120.0,109110.0,0.54513731]
[1751612791500,2.10337978,109120.0,109110.0,0.51503731]
[1751612791803,2.10337978,109120.0,109110.0,0.52003731]
[1751612792205,2.10337978,109120.0,109110.0,0.51503731]
[1751612792405,2.10437978,109120.0,109110.0,0.52003731]
[1751612792907,2.10437978,109120.0,109110.0,0.51703731]
[1751612793098,2.10537978,109120.0,109110.0,0.52003731]
[1751612793293,2.10537978,109120.0,109110.0,0.19307593]
[1751612793503,2.35483336,109120.0,109110.0,0.19307553]
[1751612793799,2.35483336,109120.0,109110.0,0.19307543]
[1751612794103,2.35483336,109120.0,109110.0,0.00983293]
[1751612794701,2.35383336,109120.0,109110.0,0.19207543]
[1751612794909,2.35283336,109120.0,109110.0,0.19007543]
[1751612795805,2.35283336,109120.0,109110.0,0.43952901]
[1751612798002,2.35283336,109120.0,109110.0,0.19007543]
[1751612798614,2.35283336,109120.0,109110.0,0.43952901]
[1751612800118,2.10337978,109120.0,109110.0,0.43952901]
[1751612800311,2.35283336,109120.0,109110.0,0.43952901]
[1751612800824,2.10337978,109120.0,109110.0,0.43952901]
[1751612801114,1.7898462,109120.0,109110.0,0.43952901]
[1751612801310,1.7898462,109120.0,109110.0,0.53562901]
[1751612801505,2.03929978,109120.0,109110.0,0.53562901]
[1751612802018,2.03929978,109120.0,109110.0,0.28617543]
[1751612802215,2.03941978,109120.0,109110.0,0.53562901]
[1751612803819,1.7899662,109120.0,109110.0,0.28617543]
[1751612805716,1.8231662,109120.0,109110.0,0.28617543]
[1751612809821,2.07268827,109120.0,109110.0,0.28617543]
[1751612810519,2.07268827,109120.0,109110.0,0.25377543]
[1751612810719,2.10308827,109120.0,109110.0,0.25377543]
[1751612811323,2.10308827,109120.0,109110.0,0.22237543]
[1751612813727,2.10308827,109120.0,109110.0,0.25885005]
[1751612816622,2.10308827,109120.0,109110.0,0.22655005]
[1751612817624,2.10308827,109120.0,109110.0,0.22655025]
[1751612818325,2.10308827,109120.0,109110.0,0.28126218]
[1751612819927,2.46388827,109120.0,109110.0,0.28126218]
[1751612820328,2.46388827,109120.0,109110.0,0.24478756]
[1751612823420,2.46388827,109120.0,109110.0,0.06154486]
[1751612823633,2.46388827,109120.0,109110.0,0.24478746]
[1751612823928,2.71350218,109120.0,109110.0,0.24478746]
[1751612826325,2.2143662,109120.0,109110.0,0.24478746]
[1751612826624,2.71350218,109120.0,109110.0,0.24478746]
[1751612827229,2.71350218,109120.0,109110.0,0.06154486]
[1751612829824,2.71350218,109120.0,109110.0,0.04338656]
[1751612832634,0.1832426,109110.0,109100.0,0.05471193]
[1751612832832,1.31853839,109110.0,109100.0,0.05482624]
[1751612833030,1.36435269,109110.0,109100.0,0.05482624]
[1751612833535,1.43666638,109110.0,109100.0,0.05482624]
[1751612833835,1.43766638,109110.0,109100.0,0.05782624]
[1751612834229,1.43766638,109110.0,109100.0,0.07142614]
[1751612834432,1.43866638,109110.0,109100.0,0.07542614]
[1751612835127,1.43866638,109110.0,109100.0,0.25868554]
[1751612835328,2.27278638,109110.0,109100.0,0.25868554]
[1751612836131,2.2921077,109110.0,109100.0,0.25868554]
[1751612836438,2.2921077,109110.0,109100.0,0.50825353]
[1751612836641,2.2921077,109110.0,109100.0,0.25868554]
[1751612837139,2.2921077,109110.0,109100.0,0.24508564]
[1751612837539,2.2921077,109110.0,109100.0,0.49465363]
[1751612837742,2.2920677,109110.0,109100.0,0.49465363]
[1751612837941,2.2920677,109110.0,109100.0,0.52565363]
[1751612839246,2.27274638,109110.0,109100.0,0.52565363]
[1751612839941,2.29001948,109110.0,109100.0,0.52565363]
[1751612840134,2.29001948,109110.0,109100.0,0.55815363]
[1751612840443,2.29001948,109110.0,109100.0,0.50332739]
[1751612842046,2.29001948,109110.0,109100.0,0.55815363]
[1751612842047,2.04045149,109110.0,109100.0,0.55815363]
[1751612842238,2.29001948,109110.0,109100.0,0.55815363]
[1751612843948,2.29001948,109110.0,109100.0,0.1902579]
[1751612846647,2.27274638,109110.0,109100.0,0.1902579]
[1751612847941,2.28980204,109110.0,109100.0,0.1902579]
[1751612854754,2.28980204,109110.0,109100.0,0.24508414]
[1751612856358,2.27274638,109110.0,109100.0,0.24508414]
[1751612857056,2.29006592,109110.0,109100.0,0.24508414]
[1751612857858,2.52266592,109110.0,109100.0,0.24508414]
[1751612859659,0.1832579,109100.0,109090.0,0.39742844]
[1751612859861,1.47879388,109100.0,109090.0,0.37913256]
[1751612860352,0.20092065,109090.0,109080.0,0.46224499]
[1751612860551,1.99772864,109090.0,109080.0,0.37105844]
[1751612860753,2.02392864,109090.0,109080.0,0.29393574]
[1751612860953,2.05592864,109090.0,109080.0,0.20229034]
[1751612861153,2.05592864,109090.0,109080.0,0.20230224]
[1751612862455,2.05092864,109090.0,109080.0,0.20230224]
[1751612862752,2.05092864,109090.0,109080.0,0.45187023]
[1751612862949,1.80236065,109090.0,109080.0,0.45687023]
[1751612863262,1.99072864,109090.0,109080.0,0.51847023]
[1751612863462,1.99072864,109090.0,109080.0,0.55047023]
[1751612865163,1.99072864,109090.0,109080.0,0.80003822]
[1751612866164,1.99072864,109090.0,109080.0,0.55047023]
[1751612868059,2.02202864,109090.0,109080.0,0.55047023]
[1751612871170,2.02202864,109090.0,109080.0,0.30090224]
[1751612871469,2.02202864,109090.0,109080.0,0.55047023]
[1751612872270,2.02202864,109090.0,109080.0,0.31451237]
[1751612872463,2.02202864,109090.0,109080.0,0.56408036]
[1751612874073,2.02202864,109090.0,109080.0,0.56408359]
[1751612877379,2.02202864,109090.0,109080.0,0.3145156]
[1751612877571,2.02202864,109090.0,109080.0,0.56408359]
[1751612879680,2.02202864,109090.0,109080.0,0.61888644]
[1751612880877,2.06202864,109090.0,109080.0,0.61888644]
[1751612884376,2.02202864,109090.0,109080.0,0.61888644]
[1751612885383,2.02202864,109090.0,109080.0,0.61888978]
[1751612885888,2.02202864,109090.0,109080.0,0.36932179]
[1751612886074,2.02202864,109090.0,109080.0,0.61888978]
[1751612887177,2.02202864,109090.0,109080.0,0.60527308]
[1751612888176,2.02202864,109090.0,109080.0,0.55047023]
[1751612888484,2.05402864,109090.0,109080.0,0.51847023]
[1751612889175,2.05402864,109090.0,109080.0,0.59154421]
[1751612889483,2.05402864,109090.0,109080.0,0.60515491]
[1751612889676,2.05402864,109090.0,109080.0,0.59154421]
[1751612889977,0.97022065,109090.0,109080.0,0.59154421]
[1751612890178,0.97022065,109090.0,109080.0,0.7795122]
[1751612890179,1.44338065,109090.0,109080.0,0.7795122]
[1751612890385,1.44338065,109090.0,109080.0,0.54356254]
[1751612890386,2.05374864,109090.0,109080.0,0.54356254]
[1751612892183,2.05374864,109090.0,109080.0,0.5245517]
[1751612892383,1.21978864,109090.0,109080.0,0.5245517]
[1751612892586,2.05374864,109090.0,109080.0,0.5245517]
[1751612893687,2.05374864,109090.0,109080.0,0.27498371]
[1751612893886,2.05374864,109090.0,109080.0,0.5245517]
[1751612894782,2.05374864,109090.0,109080.0,0.524569]
[1751612895793,2.06274537,109090.0,109080.0,0.524569]
[1751612896276,2.05374864,109090.0,109080.0,0.524569]
[1751612896589,1.69294864,109090.0,109080.0,0.524569]
[1751612896786,2.05374864,109090.0,109080.0,0.524569]
[1751612897576,2.30331663,109090.0,109080.0,0.27500101]
[1751612897776,2.05374864,109090.0,109080.0,0.27500101]
[1751612897983,2.05374864,109090.0,109080.0,0.20192703]
[1751612898885,0.1832921,109080.0,109070.0,0.21238328]
[1751612899082,1.46102808,109080.0,109070.0,0.34984968]
[1751612899389,1.46102808,109080.0,109070.0,0.30402478]
[1751612899788,1.46102808,109080.0,109070.0,0.28586349]
[1751612899986,1.46202808,109080.0,109070.0,0.28586349]
[1751612900181,1.46302808,109080.0,109070.0,0.32545193]
[1751612901481,1.46202808,109080.0,109070.0,0.32545193]
[1751612901680,1.46302808,109080.0,109070.0,0.32545193]
[1751612902782,1.48036053,109080.0,109070.0,0.32545193]
[1751612903377,1.23079254,109080.0,109070.0,0.57501992]
[1751612903985,2.06471254,109080.0,109070.0,0.57501992]
[1751612905490,2.06471254,109080.0,109070.0,0.60541992]
[1751612905795,1.81514455,109080.0,109070.0,0.35585193]
[1751612906189,1.7978121,109080.0,109070.0,0.35585193]
[1751612910900,1.7978121,109080.0,109070.0,0.36954481]
[1751612913100,2.04750658,109080.0,109070.0,0.36954481]
[1751612921508,1.68670658,109080.0,109070.0,0.36954481]
[1751612921709,2.04750658,109080.0,109070.0,0.36954481]
[1751612922810,2.04750658,109080.0,109070.0,0.33914481]
[1751612923007,2.04750658,109080.0,109070.0,0.28423212]
[1751612924508,2.04750658,109080.0,109070.0,0.33914481]
[1751612927307,2.04750658,109080.0,109070.0,0.30255637]
[1751612927812,2.04751652,109080.0,109070.0,0.55226079]
[1751612928306,2.04751652,109080.0,109070.0,0.55227781]
[1751612936813,2.04751652,109080.0,109070.0,0.30257339]
[1751612937013,2.04751652,109080.0,109070.0,0.55227781]
[1751612937408,2.04751652,109080.0,109070.0,0.53856791]
[1751612937609,2.04751652,109080.0,109070.0,0.55229614]
[1751612939828,2.04951652,109080.0,109070.0,0.55029614]
[1751612942617,2.04951652,109080.0,109070.0,0.55031489]
[1751612945625,2.04951652,109080.0,109070.0,0.55031916]
[1751612946128,2.04951652,109080.0,109070.0,0.25480664]
[1751612946329,2.29922094,109080.0,109070.0,0.29140643]
[1751612946631,2.29922094,109080.0,109070.0,0.23649374]
[1751612947431,2.29906094,109080.0,109070.0,0.47244691]
[1751612947632,2.29906094,109080.0,109070.0,0.48621019]
[1751612949736,2.29906094,109080.0,109070.0,0.4496104]
[1751612950140,2.29906094,109080.0,109070.0,0.48620559]
[1751612951839,2.29906094,109080.0,109070.0,0.54109838]
[1751612952840,1.93826094,109080.0,109070.0,0.54109838]
[1751612953140,2.29906094,109080.0,109070.0,0.54109838]
[1751612953339,2.29906094,109080.0,109070.0,0.54112698]
[1751612954138,2.29906094,109080.0,109070.0,0.29142256]
[1751612954341,2.29906094,109080.0,109070.0,0.19993458]
[1751612954731,2.29906094,109080.0,109070.0,0.449639]
[1751612954933,2.29906094,109080.0,109070.0,0.19993458]
[1751612956036,2.29906094,109080.0,109070.0,0.23652977]
[1751612960346,2.29906094,109080.0,109070.0,0.48624325]
[1751612962043,2.29906094,109080.0,109070.0,0.23653883]
[1751612963944,1.7996521,109080.0,109070.0,0.23653883]
[1751612964143,2.29906094,109080.0,109070.0,0.23653883]
[1751612964342,2.29906094,109080.0,109070.0,0.29143162]
[1751612964544,2.29906094,109080.0,109070.0,0.23653883]
[1751612964739,1.7996521,109080.0,109070.0,0.23653883]
[1751612964945,2.29906094,109080.0,109070.0,0.23653883]
[1751612967751,2.29906094,109080.0,109070.0,0.23653511]
[1751612970559,2.29906094,109080.0,109070.0,0.22273789]
[1751612970855,2.29906094,109080.0,109070.0,0.23653613]
[1751612971053,2.43653824,109080.0,109060.0,0.29961369]
[1751612971253,0.89151362,109070.0,109060.0,0.37570879]
[1751612971449,1.21151362,109070.0,109060.0,0.37570879]
[1751612971757,1.21151362,109070.0,109060.0,0.32987869]
[1751612972454,1.21451362,109070.0,109060.0,0.33087869]
[1751612975155,1.46421804,109070.0,109060.0,0.33087869]
[1751612975754,1.21451362,109070.0,109060.0,0.33087869]
[1751612977362,1.46421804,109070.0,109060.0,0.33087869]
[1751612977862,1.21451362,109070.0,109060.0,0.33087869]
[1751612978563,1.21551362,109070.0,109060.0,0.33087869]
[1751612978867,0.183326,109060.0,109050.0,0.34818499]
[1751612979066,0.1833428,109050.0,109040.0,0.40628166]
[1751612979271,1.25934722,109050.0,109040.0,0.40628166]
[1751612979561,1.25934722,109050.0,109040.0,0.65598608]
[1751612979756,1.25934722,109050.0,109040.0,0.6652016]
[1751612980157,1.26034722,109050.0,109040.0,0.41549718]
[1751612981769,1.26034722,109050.0,109040.0,0.46926491]
[1751612982162,1.26134722,109050.0,109040.0,0.46926491]
[1751612982363,1.26134722,109050.0,109040.0,0.73325138]
[1751612982568,1.19874722,109050.0,109040.0,0.73325138]
[1751612982768,1.19874722,109050.0,109040.0,0.76445138]
[1751612983070,1.19874722,109050.0,109040.0,0.77837323]
[1751612983973,1.19874722,109050.0,109040.0,0.52866881]
[1751612984368,1.22974722,109050.0,109040.0,0.48825329]
[1751612984562,1.26294722,109050.0,109040.0,0.45545329]
[1751612984766,1.26294722,109050.0,109040.0,0.37641409]
[1751612985166,1.51265164,109050.0,109040.0,0.28473709]
[1751612985473,1.58456569,109050.0,109040.0,0.0282039]
[1751612986371,1.58456569,109050.0,109040.0,0.02819812]
[1751612986774,1.58456569,109050.0,109040.0,0.21155772]
[1751612986975,1.08515685,109050.0,109040.0,0.21155772]
[1751612987272,1.58456569,109050.0,109040.0,0.21155772]
[1751612988472,1.33486127,109050.0,109040.0,0.21155772]
[1751612988773,1.33486127,109050.0,109040.0,0.19728145]
[1751612988973,1.33486127,109050.0,109040.0,0.211615]
[1751612989572,1.58456569,109050.0,109040.0,0.211615]
[1751612989874,1.58456569,109050.0,109040.0,0.1833596]
[1751612991471,0.1833597,109040.0,109030.0,0.30888617]
[1751612991672,2.32956854,109040.0,109030.0,0.30888617]
[1751612992176,2.32956854,109040.0,109030.0,0.26304337]
[1751612992379,2.32956854,109040.0,109030.0,0.03018648]
[1751612993081,2.33156854,109040.0,109030.0,0.03018648]
[1751612993778,2.33256854,109040.0,109030.0,0.03018648]
[1751612994372,2.33256854,109040.0,109030.0,0.21356278]
[1751612994577,2.33256854,109040.0,109030.0,0.03018648]
[1751612995087,2.33256854,109040.0,109030.0,0.05758612]
[1751612996089,0.1833932,109020.0,109010.0,0.6817525]
[1751612996289,0.77309762,109020.0,109010.0,1.00615692]
[1751612996491,0.80479762,109020.0,109010.0,1.00615692]
[1751612996699,0.80479762,109020.0,109010.0,1.03645692]
[1751612997684,0.80679762,109020.0,109010.0,0.67565692]
[1751612998588,2.21928204,109020.0,109010.0,0.01]
[1751612998785,2.28138204,109020.0,109010.0,0.1934101]
[1751612998985,2.31218204,109020.0,109010.0,0.24820415]
[1751612999491,2.31218204,109020.0,109010.0,0.1934101]
[1751612999791,2.31218204,109020.0,109010.0,0.01]
[1751613000092,2.31318204,109020.0,109010.0,0.01]
[1751613001091,2.31318204,109020.0,109010.0,0.04652019]
[1751613001893,2.06378672,109020.0,109010.0,0.04652019]
[1751613003394,2.06378672,109020.0,109010.0,0.22993029]
[1751613003895,2.06378672,109020.0,109010.0,0.04652019]
[1751613004289,2.06378672,109020.0,109010.0,0.01]
[1751613004484,2.06378672,109020.0,109000.0,0.52599674]
[1751613004485,0.1834101,109010.0,109000.0,0.09131424]
[1751613004684,0.1834269,109000.0,108990.0,0.4269832]
[1751613004894,1.14584042,109000.0,108990.0,0.4269832]
[1751613005194,1.14584042,109000.0,108990.0,0.46349228]
[1751613005383,1.97956042,109000.0,108990.0,0.43109228]
[1751613005590,1.97956042,109000.0,108990.0,0.37629823]
[1751613007399,2.01106042,109000.0,108990.0,0.34519823]
[1751613007998,2.01306042,109000.0,108990.0,0.34519823]
[1751613008195,2.01306042,109000.0,108990.0,0.2819771]
[1751613009900,2.01406042,109000.0,108990.0,0.2819771]
[1751613010093,0.9303269,109000.0,108990.0,0.2819771]
[1751613010294,1.7641269,109000.0,108990.0,0.53199062]
[1751613010495,1.7641269,109000.0,108990.0,0.59439062]
[1751613010697,1.7641269,109000.0,108990.0,0.3443771]
[1751613012003,2.01414042,109000.0,108990.0,0.01617402]
[1751613013398,0.1834605,108980.0,108970.0,0.21997138]
[1751613013596,0.1834605,108980.0,108970.0,0.21757736]
[1751613013597,1.10030498,108980.0,108970.0,0.21757736]
[1751613013794,1.99854498,108980.0,108970.0,0.03650908]
[1751613014099,0.1834764,108970.0,108960.0,0.40423418]
[1751613014303,1.12428992,108970.0,108960.0,0.35836178]
[1751613014496,1.18919142,108970.0,108960.0,0.32646178]
[1751613014700,1.18968836,108970.0,108960.0,0.32646178]
[1751613015205,1.22108836,108970.0,108960.0,0.32646178]
[1751613016392,1.22108836,108970.0,108960.0,0.26586178]
[1751613016393,1.22208836,108970.0,108960.0,0.26586178]
[1751613016800,1.22408836,108970.0,108960.0,0.26586178]
[1751613017403,1.22408836,108970.0,108960.0,0.2293527]
[1751613017905,1.22408836,108970.0,108960.0,0.24369563]
[1751613018306,0.97407484,108970.0,108960.0,0.24369563]
[1751613018605,1.22408836,108970.0,108960.0,0.24369563]
[1751613019994,1.22408836,108970.0,108960.0,0.01434293]
[1751613020501,0.1834933,108960.0,108950.0,0.47185512]
[1751613020704,0.89479024,108960.0,108950.0,0.55149892]
[1751613020908,0.89479024,108960.0,108950.0,0.58219892]
[1751613021203,0.89529174,108960.0,108950.0,0.54568984]
[1751613021405,0.8863412,108960.0,108950.0,0.64219892]
[1751613021805,0.8863412,108960.0,108950.0,0.65153542]
[1751613022007,0.8883412,108960.0,108950.0,0.65153542]
[1751613022194,0.8883412,108960.0,108950.0,0.61502634]
[1751613022395,0.8883412,108960.0,108950.0,0.3921854]
[1751613023502,0.8883412,108960.0,108950.0,0.3778416]
[1751613023801,0.8893412,108960.0,108950.0,0.39218541]
[1751613024003,1.16935472,108960.0,108950.0,0.39218541]
[1751613024601,1.16935472,108960.0,108950.0,0.29618541]
[1751613024802,1.20095472,108960.0,108950.0,0.23618541]
[1751613025108,1.20095472,108960.0,108950.0,0.19967633]
[1751613025109,2.03659472,108960.0,108950.0,0.19967633]
[1751613025305,2.03659472,108960.0,108950.0,0.25052956]
[1751613025498,2.03559472,108960.0,108950.0,0.03052358]
[1751613025704,2.03659472,108960.0,108950.0,0.03052444]
[1751613025904,2.03659472,108960.0,108950.0,0.21403354]
[1751613026110,2.03659472,108960.0,108950.0,0.03052444]
[1751613026410,2.03659472,108960.0,108950.0,0.03052542]
[1751613027009,2.28660824,108960.0,108950.0,0.03052542]
[1751613027202,0.1835096,108950.0,108940.0,0.03650908]
[1751613027406,1.23962312,108950.0,108940.0,0.1835265]
[1751613027706,1.23962312,108950.0,108930.0,0.43060293]
[1751613027707,0.1835264,108940.0,108930.0,0.43060293]
[1751613027913,0.5680264,108940.0,108930.0,0.43060293]
[1751613028210,0.81903836,108940.0,108930.0,0.37580888]
[1751613028404,0.81903836,108940.0,108930.0,0.36660293]
[1751613028610,0.81307034,108940.0,108930.0,0.31180888]
[1751613028812,0.56505682,108940.0,108930.0,0.31180888]
[1751613029014,0.56505682,108940.0,108930.0,0.34210888]
[1751613029015,0.53365682,108940.0,108930.0,0.34210888]
[1751613029316,0.53365682,108940.0,108930.0,0.37340888]
[1751613029703,0.53465682,108940.0,108930.0,0.37340888]
[1751613030110,1.37181682,108940.0,108930.0,0.37340888]
[1751613031108,1.05181682,108940.0,108930.0,0.38340888]
[1751613031306,1.40286478,108940.0,108930.0,0.38340888]
[1751613031919,1.04286478,108940.0,108930.0,0.38340888]
[1751613032116,1.36286478,108940.0,108930.0,0.38340888]
[1751613032712,1.6128783,108940.0,108930.0,0.38340888]
[1751613032914,1.36286478,108940.0,108930.0,0.38340888]
[1751613033212,1.6128783,108940.0,108930.0,0.38340888]
[1751613034301,1.04286478,108940.0,108930.0,0.38340888]
[1751613034506,1.42286478,108940.0,108930.0,0.38340888]
[1751613035318,1.40286478,108940.0,108930.0,0.38340888]
[1751613035908,1.04286478,108940.0,108930.0,0.38340888]
[1751613036108,1.6028783,108940.0,108930.0,0.38340888]
[1751613036518,1.35286478,108940.0,108930.0,0.38340888]
[1751613037110,0.00399844,108940.0,108930.0,0.9134224]
[1751613037311,0.50752484,108940.0,108930.0,0.9134224]
[1751613037509,0.50752484,108940.0,108930.0,0.96821645]
[1751613037709,0.50752484,108940.0,108930.0,0.71820293]
[1751613037910,0.53752484,108940.0,108930.0,0.71820293]
[1751613039215,0.53752484,108940.0,108930.0,0.73254908]
[1751613042417,1.23298637,108940.0,108930.0,0.01434615]
[1751613043121,1.23498637,108940.0,108930.0,0.19788935]
[1751613043321,2.07338637,108940.0,108930.0,0.19788935]
[1751613044219,2.07438637,108940.0,108930.0,0.19788935]
[1751613045119,1.23598637,108940.0,108930.0,0.19788935]
[1751613045315,2.07422637,108940.0,108930.0,0.19788935]
[1751613046615,2.07522481,108940.0,108930.0,0.19788935]
[1751613049122,1.82521129,108940.0,108930.0,0.19788935]
[1751613049422,2.07522481,108940.0,108930.0,0.23447403]
[1751613051025,2.07522481,108940.0,108930.0,0.05091157]
[1751613051224,2.07522481,108940.0,108930.0,0.23445497]
[1751613051423,2.07522481,108940.0,108930.0,0.05091157]
[1751613055224,2.07522481,108940.0,108930.0,0.23445487]
[1751613055725,2.07522481,108940.0,108930.0,0.05091157]
[1751613055926,2.07522481,108940.0,108930.0,0.23445497]
[1751613056127,2.07522481,108940.0,108930.0,0.0783968]
[1751613056924,2.07522481,108940.0,108930.0,0.2619402]
[1751613059429,2.07522481,108940.0,108930.0,0.0783968]
[1751613060030,2.07498481,108940.0,108930.0,0.0783968]
[1751613060330,2.07498481,108940.0,108930.0,0.07841807]
[1751613060828,2.07498481,108940.0,108930.0,0.26196147]
[1751613061031,2.07498481,108940.0,108930.0,0.07841807]
[1751613061232,2.07498481,108940.0,108930.0,0.26196147]
[1751613061824,2.07498481,108940.0,108930.0,0.27630963]
[1751613063234,2.07498481,108940.0,108930.0,0.2488244]
[1751613063527,2.07498481,108940.0,108930.0,0.27631932]
[1751613064331,2.07498481,108940.0,108930.0,0.2488244]
[1751613065230,2.07498481,108940.0,108930.0,0.24882435]
[1751613066223,1.82497129,108940.0,108930.0,0.24882435]
[1751613066432,2.07498481,108940.0,108930.0,0.24882435]
[1751613067232,2.07498481,108940.0,108930.0,0.3036184]
[1751613067535,1.23698481,108940.0,108930.0,0.3036184]
[1751613067726,2.07478481,108940.0,108930.0,0.3341184]
[1751613068737,1.23698481,108940.0,108930.0,0.3341184]
[1751613068930,1.82473129,108940.0,108930.0,0.3341184]
[1751613069129,2.07474481,108940.0,108930.0,0.3341184]
[1751613069329,1.23698481,108940.0,108930.0,0.3341184]
[1751613069530,2.07462481,108940.0,108930.0,0.36388042]
[1751613069733,2.07482481,108940.0,108930.0,0.36388042]
[1751613069932,2.07482481,108940.0,108930.0,0.36388041]
[1751613070236,2.07482481,108940.0,108930.0,0.32729573]
[1751613071135,2.07482481,108940.0,108930.0,0.36399606]
[1751613071338,2.07482481,108940.0,108930.0,0.32729573]
[1751613072236,0.92407129,108940.0,108930.0,0.32729573]
[1751613072434,1.73105129,108940.0,108930.0,0.68790925]
[1751613072737,0.53257129,108940.0,108930.0,0.68790925]
[1751613073235,0.53257129,108940.0,108930.0,0.687771]
[1751613073442,0.00399844,108940.0,108930.0,0.687771]
[1751613073636,0.183511,108950.0,108940.0,0.1835265]
[1751613073842,0.5443067,108960.0,108950.0,0.1835097]
[1751613074139,0.21,108960.0,108950.0,1.1271395]
[1751613074437,0.21,108960.0,108950.0,1.3106995]
[1751613074641,0.21,108960.0,108950.0,1.11279256]
[1751613075231,0.3974927,108960.0,108950.0,0.86277904]
[1751613075436,0.3974927,108960.0,108950.0,1.11279256]
[1751613076033,0.216,108960.0,108950.0,1.11279256]
[1751613077634,0.3994925,108960.0,108950.0,1.11279256]
[1751613077841,0.3994925,108960.0,108950.0,1.12180379]
[1751613078041,0.3994925,108960.0,108950.0,1.13895939]
[1751613078240,0.3994925,108960.0,108950.0,1.12074094]
[1751613078641,0.216,108960.0,108950.0,1.12074094]
[1751613079342,0.3994928,108960.0,108950.0,1.12074094]
[1751613079841,0.3994928,108960.0,108950.0,1.11172971]
[1751613080442,0.64950632,108960.0,108950.0,0.86171619]
[1751613081036,0.3994928,108960.0,108950.0,0.86171619]
[1751613081538,0.3994928,108960.0,108950.0,0.87588991]
[1751613081742,1.01030632,108960.0,108950.0,0.55163544]
[1751613081942,1.84854632,108960.0,108950.0,0.45623544]
[1751613082138,1.91344632,108960.0,108950.0,0.45623544]
[1751613083340,1.91344632,108960.0,108950.0,0.44206172]
[1751613085346,1.91344632,108960.0,108950.0,0.23721073]
[1751613086650,1.91344632,108960.0,108950.0,0.26461693]
[1751613088149,1.91344632,108960.0,108950.0,0.23721073]
[1751613090248,1.91344632,108960.0,108950.0,0.29206162]
[1751613091450,1.91344632,108960.0,108950.0,0.23721073]
[1751613091852,1.91344632,108960.0,108950.0,0.25138243]
[1751613097650,1.91344632,108960.0,108950.0,0.23422683]
[1751613098254,1.91344632,108960.0,108950.0,0.28907772]
[1751613100258,1.91344632,108960.0,108950.0,0.25253219]
[1751613102159,1.91344632,108960.0,108950.0,0.27075064]
[1751613104960,1.91344632,108960.0,108950.0,0.27082931]
[1751613106262,1.6634328,108960.0,108950.0,0.27082931]
[1751613106461,1.91344632,108960.0,108950.0,0.27082931]
[1751613107964,1.91344632,108960.0,108950.0,0.27083067]
[1751613108764,1.91344632,108960.0,108950.0,0.2708316]
[1751613109568,1.6634328,108960.0,108950.0,0.52084512]
[1751613109766,1.6634328,108960.0,108950.0,0.58424512]
[1751613109962,0.8251928,108960.0,108950.0,0.58424512]
[1751613110262,1.3010328,108960.0,108950.0,0.58424512]
[1751613110664,1.6618328,108960.0,108950.0,0.3342316]
[1751613111062,1.6617528,108960.0,108950.0,0.3342316]
[1751613111262,1.6617528,108960.0,108950.0,0.33423562]
[1751613114265,1.91176632,108960.0,108950.0,0.33423962]
[1751613115671,1.91176632,108960.0,108950.0,0.30403962]
[1751613115967,1.91176632,108960.0,108950.0,0.27083962]
[1751613116961,1.91176632,108960.0,108950.0,0.25657894]
[1751613118271,1.91176632,108960.0,108950.0,0.07306934]
[1751613118472,1.91176632,108960.0,108950.0,0.25657914]
[1751613118863,1.07520632,108960.0,108950.0,0.25657914]
[1751613119064,1.91128632,108960.0,108950.0,0.25657914]
[1751613121468,1.6295128,108960.0,108950.0,0.55659266]
[1751613121666,1.6295128,108960.0,108950.0,0.58959266]
[1751613121864,1.6295128,108960.0,108950.0,0.62259266]
[1751613122577,1.6295128,108960.0,108950.0,0.57259266]